Department Family,Entity,Date Paid,Expense Type,Expenses Area,Supplier Name,Transaction Reference,Total,VAT Registration Number,Vlookup
Department of Health,Imperial College Healthcare NHS Trust,02/01/2024,Agency Consultant,Pathology,Reed Specialist Recruitment Ltd,61799,77569.67,Optional requirement only,0
Department of Health,Imperial College Healthcare NHS Trust,02/01/2024,Agency Nursing: Qualified,Div Of Med & Integrated Care,Reed Specialist Recruitment Ltd,4960367,46699.43,Optional requirement only,0
Department of Health,Imperial College Healthcare NHS Trust,02/01/2024,Agency Nursing: Qualified,Div Of Med & Integrated Care,Reed Specialist Recruitment Ltd,4965622,48037.32,Optional requirement only,0
Department of Health,Imperial College Healthcare NHS Trust,02/01/2024,Bldg/Eng Equip Maint/Rep,Estates Directorate,Cbre Managed Services Ltd,4955789,31547.42,Optional requirement only,0
Department of Health,Imperial College Healthcare NHS Trust,02/01/2024,Blood Products,Pathology,Nhs Blood And Transplant,4953588,39271.23,Optional requirement only,0
Department of Health,Imperial College Healthcare NHS Trust,02/01/2024,Blood Products,Pathology,Nhs Blood And Transplant,4953591,57987.17,Optional requirement only,0
Department of Health,Imperial College Healthcare NHS Trust,02/01/2024,Blood Products,Pathology,Nhs Blood And Transplant,4954523,69636.14,Optional requirement only,0
Department of Health,Imperial College Healthcare NHS Trust,02/01/2024,Blood Products,Pathology,Nhs Blood And Transplant,4954524,308113.02,Optional requirement only,0
Department of Health,Imperial College Healthcare NHS Trust,02/01/2024,Blood Products,Pathology,Nhs Blood And Transplant,4954528,177399.6,Optional requirement only,0
Department of Health,Imperial College Healthcare NHS Trust,02/01/2024,Car Salary Sacrifice,Ichnt Balance Sheet,Tuskerdirect Ltd,4947788,114987.84,Optional requirement only,0
Department of Health,Imperial College Healthcare NHS Trust,02/01/2024,Computer Software/License,Information & Comms Technology,Oracle Corporation Uk Ltd,4958098,168985.67,Optional requirement only,0
Department of Health,Imperial College Healthcare NHS Trust,02/01/2024,Cy Auc -Addns-Bd Purchased,Capital Summary,Cbre Managed Services Ltd,4955789,1506623.77,Optional requirement only,0
Department of Health,Imperial College Healthcare NHS Trust,02/01/2024,Cy Auc -Addns-Bd Purchased,Capital Summary,Williams Building Company (22) Limited,4958057,60000,Optional requirement only,0
Department of Health,Imperial College Healthcare NHS Trust,02/01/2024,Cy Auc -Addns- P & M-Purchased,Capital Summary,B Braun Avitum Ltd,4951925,142848.24,Optional requirement only,0
Department of Health,Imperial College Healthcare NHS Trust,02/01/2024,Dist Award - Local Cea,Div Of Med & Integrated Care,Imperial College London,4965684,28071.09,Optional requirement only,0
Department of Health,Imperial College Healthcare NHS Trust,02/01/2024,Dist Award - Nat Cea,Div Of Med & Integrated Care,Imperial College London,4965684,71379.04,Optional requirement only,0
Department of Health,Imperial College Healthcare NHS Trust,02/01/2024,Dist Award - Nat Cea,"Div Of Surg, Cardiov & Cancer",Imperial College London,4965684,55061.5,Optional requirement only,0
Department of Health,Imperial College Healthcare NHS Trust,02/01/2024,Dist Award - Nat Cea,Div Of Women Cardiac Clin Sup & Sexual Health Serv,Imperial College London,4965684,34544,Optional requirement only,0
Department of Health,Imperial College Healthcare NHS Trust,02/01/2024,Drugs Pbr Excluded,"Div Of Surg, Cardiov & Cancer",Healthcare At Home Ltd,4962150,30149.7,Optional requirement only,0
Department of Health,Imperial College Healthcare NHS Trust,02/01/2024,Drugs Pbr Excluded,"Div Of Surg, Cardiov & Cancer",Healthcare At Home Ltd,4962153,52653.5,Optional requirement only,0
Department of Health,Imperial College Healthcare NHS Trust,02/01/2024,Electricity,Estates Directorate,Edf Energy Customer Plc,4959891,627996.19,Optional requirement only,0
Department of Health,Imperial College Healthcare NHS Trust,02/01/2024,Electricity,Estates Directorate,Edf Energy Customer Plc,4959892,142194.2,Optional requirement only,0
Department of Health,Imperial College Healthcare NHS Trust,02/01/2024,Electricity,Estates Directorate,Edf Energy Customer Plc,4959895,60610.04,Optional requirement only,0
Department of Health,Imperial College Healthcare NHS Trust,02/01/2024,Electricity,Estates Directorate,Edf Energy Customer Plc,4959898,48074.07,Optional requirement only,0
Department of Health,Imperial College Healthcare NHS Trust,02/01/2024,Electricity,Estates Directorate,Edf Energy Customer Plc,4959901,331938.29,Optional requirement only,0
Department of Health,Imperial College Healthcare NHS Trust,02/01/2024,Gas,Estates Directorate,Total Gas & Power Ltd,4960403,156637.54,Optional requirement only,0
Department of Health,Imperial College Healthcare NHS Trust,02/01/2024,Gas,Estates Directorate,Total Gas & Power Ltd,4960406,255666.57,Optional requirement only,0
Department of Health,Imperial College Healthcare NHS Trust,02/01/2024,Gas,Estates Directorate,Total Gas & Power Ltd,4960407,321803.3,Optional requirement only,0
Department of Health,Imperial College Healthcare NHS Trust,02/01/2024,Home Electronics Cr,Ichnt Balance Sheet,Northumbria Healthcare Nhs Foundation Trust,4936739,27166.9,Optional requirement only,0
Department of Health,Imperial College Healthcare NHS Trust,02/01/2024,Home Electronics Cr,Ichnt Balance Sheet,Northumbria Healthcare Nhs Foundation Trust,4945540,30575.69,Optional requirement only,0
Department of Health,Imperial College Healthcare NHS Trust,02/01/2024,Hopper Service,Estates Directorate,Dhl Supply Chain  (Former Excel),4945834,40329.65,Optional requirement only,0
Department of Health,Imperial College Healthcare NHS Trust,02/01/2024,Ic Pay Recharge In: Med,Div Of Med & Integrated Care,Imperial College London,4965684,139998.6,Optional requirement only,0
Department of Health,Imperial College Healthcare NHS Trust,02/01/2024,Ic Pay Recharge In: Med,"Div Of Surg, Cardiov & Cancer",Imperial College London,4965684,429217.66,Optional requirement only,0
Department of Health,Imperial College Healthcare NHS Trust,02/01/2024,Ic Pay Recharge In: Med,"Div Of Surg, Cardiov & Cancer",Imperial College London,4965691,63631.44,Optional requirement only,0
Department of Health,Imperial College Healthcare NHS Trust,02/01/2024,Ic Pay Recharge In: Med,Div Of Women Cardiac Clin Sup & Sexual Health Serv,Imperial College London,4965684,178785.38,Optional requirement only,0
Department of Health,Imperial College Healthcare NHS Trust,02/01/2024,Ic Pay Recharge In: Med,Pathology,Imperial College London,4965841,29582.11,Optional requirement only,0
Department of Health,Imperial College Healthcare NHS Trust,02/01/2024,Ic Pay Recharge In: Med,Private Patients Directorate,Imperial College London,4932075,47202.48,Optional requirement only,0
Department of Health,Imperial College Healthcare NHS Trust,02/01/2024,Items Pending Investigation,Ichnt Balance Sheet,Cdw Ltd,4779924,146739.66,Optional requirement only,0
Department of Health,Imperial College Healthcare NHS Trust,02/01/2024,Items Pending Investigation,Ichnt Balance Sheet,Cdw Ltd,4779925,48690.46,Optional requirement only,0
Department of Health,Imperial College Healthcare NHS Trust,02/01/2024,Jac - Stock,Balance Sheet St Marys,Csl Behring Uk Ltd,4965561,32955,Optional requirement only,Stock
Department of Health,Imperial College Healthcare NHS Trust,02/01/2024,Jac - Stock,Balance Sheet St Marys,Csl Behring Uk Ltd,4965562,32955,Optional requirement only,Stock
Department of Health,Imperial College Healthcare NHS Trust,02/01/2024,Jac - Stock,Balance Sheet St Marys,Gilead Sciences Ltd,4962801,32546.05,Optional requirement only,Stock
Department of Health,Imperial College Healthcare NHS Trust,02/01/2024,Jac - Stock,Balance Sheet St Marys,Grifols Uk Ltd,4962774,31142,Optional requirement only,Stock
Department of Health,Imperial College Healthcare NHS Trust,02/01/2024,Jac - Stock,Balance Sheet St Marys,Healthcare At Home Ltd,4964355,37299,Optional requirement only,Stock
Department of Health,Imperial College Healthcare NHS Trust,02/01/2024,Jac - Stock,Balance Sheet St Marys,Janssen-Cilag Ltd,4962777,51532.56,Optional requirement only,Stock
Department of Health,Imperial College Healthcare NHS Trust,02/01/2024,Jac - Stock,Balance Sheet St Marys,Roche Products Ltd,4962940,466729.25,Optional requirement only,Stock
Department of Health,Imperial College Healthcare NHS Trust,02/01/2024,Jac - Stock,Balance Sheet St Marys,Roche Products Ltd,4965603,67566.84,Optional requirement only,Stock
Department of Health,Imperial College Healthcare NHS Trust,02/01/2024,Laboratory Chemicals/ Reagents,Pathology,Waters Limited,61803,321729.41,Optional requirement only,0
Department of Health,Imperial College Healthcare NHS Trust,02/01/2024,Laboratory External Tests,Pathology,The Doctors Laboratory Ltd,4958193,41653.2,Optional requirement only,0
Department of Health,Imperial College Healthcare NHS Trust,02/01/2024,Legal Fees,"Div Of Surg, Cardiov & Cancer",Capsticks Solicitors Llp,4916917,30553.32,Optional requirement only,0
Department of Health,Imperial College Healthcare NHS Trust,02/01/2024,Med & Surg Equip General,Div Of Med & Integrated Care,Medtronic Ltd,4959965,86193.41,Optional requirement only,0
Department of Health,Imperial College Healthcare NHS Trust,02/01/2024,Nhs Pay Recharge In: Med,Central Costs,Royal Free London Nhs Foundation Trust,4926690,152694.22,Optional requirement only,0
Department of Health,Imperial College Healthcare NHS Trust,02/01/2024,Nhs Pay Recharge In: Med,Central Costs,Royal Free London Nhs Foundation Trust,4944638,144986.05,Optional requirement only,0
Department of Health,Imperial College Healthcare NHS Trust,02/01/2024,Non-Nhs Pay Recharge In: Other,Nhs Elect,Midlands And Lancashire Csu,4965870,37000,Optional requirement only,0
Department of Health,Imperial College Healthcare NHS Trust,02/01/2024,Printing Costs,Div Of Women Cardiac Clin Sup & Sexual Health Serv,Kingsley Print & Design,4947859,32371.2,Optional requirement only,0
Department of Health,Imperial College Healthcare NHS Trust,02/01/2024,Rent,Div Of Med & Integrated Care,Nhs Property Services Ltd,4949728,89726.02,Optional requirement only,0
Department of Health,Imperial College Healthcare NHS Trust,02/01/2024,Rent,Div Of Med & Integrated Care,Nhs Property Services Ltd,4949733,166889.19,Optional requirement only,0
Department of Health,Imperial College Healthcare NHS Trust,02/01/2024,Rent,Div Of Women Cardiac Clin Sup & Sexual Health Serv,Nhs Property Services Ltd,4949727,31482.21,Optional requirement only,0
Department of Health,Imperial College Healthcare NHS Trust,02/01/2024,Rent,Div Of Women Cardiac Clin Sup & Sexual Health Serv,Nhs Property Services Ltd,4949731,32170.78,Optional requirement only,0
Department of Health,Imperial College Healthcare NHS Trust,02/01/2024,Services Received - Nhsts,Div Of Med & Integrated Care,London North West Univ Healthcare Nhs Trust,4884198,168157.46,Optional requirement only,0
Department of Health,Imperial College Healthcare NHS Trust,02/01/2024,Services Received - Nhsts,Div Of Med & Integrated Care,West Hertfordshire Hospitals Nhs Trust,4960812,26113.86,Optional requirement only,0
Department of Health,Imperial College Healthcare NHS Trust,02/01/2024,Srvcsrecd-Other Nhs,Finance Directorate,Central London Community Healthcare Nhs Trust,4927250,2090213.79,Optional requirement only,0
Department of Health,Imperial College Healthcare NHS Trust,02/01/2024,Srvcsrecd-Other Nhs,Finance Directorate,Lancashire Teaching Hospitals Nhs Ft,4950316,28496,Optional requirement only,0
Department of Health,Imperial College Healthcare NHS Trust,02/01/2024,Supplies Issues Recharges,Ichnt Balance Sheet,Supply Chain Coordination Ltd (Sccl) ( 101),4944096,164050.37,Optional requirement only,Stock
Department of Health,Imperial College Healthcare NHS Trust,02/01/2024,Supplies Issues Recharges,Ichnt Balance Sheet,Supply Chain Coordination Ltd (Sccl) ( 101),4944101,137008.69,Optional requirement only,Stock
Department of Health,Imperial College Healthcare NHS Trust,02/01/2024,Taxi & Other Vehicle Hire,Estates Directorate,Dhl Supply Chain  (Former Excel),4959363,71958.35,Optional requirement only,0
Department of Health,Imperial College Healthcare NHS Trust,02/01/2024,Taxi & Other Vehicle Hire,Estates Directorate,Hats Group Ltd,4949530,32063.34,Optional requirement only,0
Department of Health,Imperial College Healthcare NHS Trust,02/01/2024,Training Expenses,Human Resources,Kallidus Limited,4926719,65292,Optional requirement only,0
Department of Health,Imperial College Healthcare NHS Trust,02/06/2024,Cy Auc -Addns- P & M-Purchased,Capital Summary,Supply Chain Coordination Ltd (Sccl) ( 905),4955973,80625.6,Optional requirement only,0
Department of Health,Imperial College Healthcare NHS Trust,02/06/2024,Drugs Nhs,Div Of Women Cardiac Clin Sup & Sexual Health Serv,Lp Hcs Ltd,4946606,3746706.34,Optional requirement only,0
Department of Health,Imperial College Healthcare NHS Trust,02/06/2024,Jac - Stock,Balance Sheet St Marys,Alliance Healthcare (Distribution) Ltd,4968221,34168.93,Optional requirement only,Stock
Department of Health,Imperial College Healthcare NHS Trust,02/06/2024,Jac - Stock,Balance Sheet St Marys,Bayer Plc,4967725,43797.89,Optional requirement only,Stock
Department of Health,Imperial College Healthcare NHS Trust,02/06/2024,Jac - Stock,Balance Sheet St Marys,Bms Pharmaceuticals Ltd (0034),4966998,55062,Optional requirement only,Stock
Department of Health,Imperial College Healthcare NHS Trust,02/06/2024,Jac - Stock,Balance Sheet St Marys,Grifols Uk Ltd,4966760,36558,Optional requirement only,Stock
Department of Health,Imperial College Healthcare NHS Trust,02/06/2024,Jac - Stock,Balance Sheet St Marys,Qualasept Ltd,4967813,54932.04,Optional requirement only,Stock
Department of Health,Imperial College Healthcare NHS Trust,02/06/2024,Jac - Stock,Balance Sheet St Marys,Roche Products Ltd,4967012,219960,Optional requirement only,Stock
Department of Health,Imperial College Healthcare NHS Trust,02/06/2024,Laboratory Equipment,Pathology,Olm Diagnostics Ltd,61897,58396.18,Optional requirement only,0
Department of Health,Imperial College Healthcare NHS Trust,02/06/2024,Other Research Exp - Pay,Rd Surgery & Cancer Division,Imperial College London,4956531,97002.12,Optional requirement only,0
Department of Health,Imperial College Healthcare NHS Trust,02/06/2024,Postage & Carriage,Estates Directorate,Francotyp-Postalia Uk Limited T/A Teleset,4968475,28000,Optional requirement only,0
Department of Health,Imperial College Healthcare NHS Trust,02/06/2024,Professional Services,Information & Comms Technology,Dnj Consultancy Ltd,4965985,228219,Optional requirement only,0
Department of Health,Imperial College Healthcare NHS Trust,02/06/2024,Provisions,Estates Directorate,Brakes Bros Ltd,4967030,244595.24,Optional requirement only,0
Department of Health,Imperial College Healthcare NHS Trust,02/06/2024,Provisions,Estates Directorate,Brakes Bros Ltd,4968259,237362.9,Optional requirement only,0
Department of Health,Imperial College Healthcare NHS Trust,02/06/2024,Rent,Estates Directorate,Metropolitan Thames Valley,4965891,58223.4,Optional requirement only,0
Department of Health,Imperial College Healthcare NHS Trust,02/06/2024,Supplies Issues Recharges,Ichnt Balance Sheet,Supply Chain Coordination Ltd (Sccl) ( 101),4944097,220121.73,Optional requirement only,Stock
Department of Health,Imperial College Healthcare NHS Trust,02/06/2024,Supplies Issues Recharges,Ichnt Balance Sheet,Supply Chain Coordination Ltd (Sccl) ( 101),4944098,163700.32,Optional requirement only,Stock
Department of Health,Imperial College Healthcare NHS Trust,02/06/2024,Supplies Issues Recharges,Ichnt Balance Sheet,Supply Chain Coordination Ltd (Sccl) ( 101),4944099,98461.52,Optional requirement only,Stock
Department of Health,Imperial College Healthcare NHS Trust,02/06/2024,Supplies Issues Recharges,Ichnt Balance Sheet,Supply Chain Coordination Ltd (Sccl) ( 101),4944100,174266.39,Optional requirement only,Stock
Department of Health,Imperial College Healthcare NHS Trust,02/06/2024,Supplies Issues Recharges,Ichnt Balance Sheet,Supply Chain Coordination Ltd (Sccl) ( 101),4946307,62562.96,Optional requirement only,Stock
Department of Health,Imperial College Healthcare NHS Trust,02/06/2024,Supplies Issues Recharges,Ichnt Balance Sheet,Supply Chain Coordination Ltd (Sccl) ( 101),4946308,80019.59,Optional requirement only,Stock
Department of Health,Imperial College Healthcare NHS Trust,02/06/2024,Supplies Issues Recharges,Ichnt Balance Sheet,Supply Chain Coordination Ltd (Sccl) ( 101),4946309,102690.12,Optional requirement only,Stock
Department of Health,Imperial College Healthcare NHS Trust,02/06/2024,Supplies Issues Recharges,Ichnt Balance Sheet,Supply Chain Coordination Ltd (Sccl) ( 101),4946310,63093.76,Optional requirement only,Stock
Department of Health,Imperial College Healthcare NHS Trust,02/06/2024,Supplies Issues Recharges,Ichnt Balance Sheet,Supply Chain Coordination Ltd (Sccl) ( 101),4946313,65678.53,Optional requirement only,Stock
Department of Health,Imperial College Healthcare NHS Trust,02/06/2024,Supplies Issues Recharges,Ichnt Balance Sheet,Supply Chain Coordination Ltd (Sccl) ( 101),4949684,92129.86,Optional requirement only,Stock
Department of Health,Imperial College Healthcare NHS Trust,02/06/2024,Supplies Issues Recharges,Ichnt Balance Sheet,Supply Chain Coordination Ltd (Sccl) ( 101),4949685,35464.3,Optional requirement only,Stock
Department of Health,Imperial College Healthcare NHS Trust,02/06/2024,Supplies Issues Recharges,Ichnt Balance Sheet,Supply Chain Coordination Ltd (Sccl) ( 101),4949686,76952.71,Optional requirement only,Stock
Department of Health,Imperial College Healthcare NHS Trust,02/06/2024,Supplies Issues Recharges,Ichnt Balance Sheet,Supply Chain Coordination Ltd (Sccl) ( 101),4949687,80411.73,Optional requirement only,Stock
Department of Health,Imperial College Healthcare NHS Trust,02/06/2024,Supplies Issues Recharges,Ichnt Balance Sheet,Supply Chain Coordination Ltd (Sccl) ( 101),4949688,81085.05,Optional requirement only,Stock
Department of Health,Imperial College Healthcare NHS Trust,02/06/2024,Supplies Issues Recharges,Ichnt Balance Sheet,Supply Chain Coordination Ltd (Sccl) ( 101),4949689,134494.91,Optional requirement only,Stock
Department of Health,Imperial College Healthcare NHS Trust,02/06/2024,Supplies Issues Recharges,Ichnt Balance Sheet,Supply Chain Coordination Ltd (Sccl) ( 101),4953992,164163.97,Optional requirement only,Stock
Department of Health,Imperial College Healthcare NHS Trust,02/06/2024,Supplies Issues Recharges,Ichnt Balance Sheet,Supply Chain Coordination Ltd (Sccl) ( 101),4953993,123311.7,Optional requirement only,Stock
Department of Health,Imperial College Healthcare NHS Trust,02/06/2024,Supplies Issues Recharges,Ichnt Balance Sheet,Supply Chain Coordination Ltd (Sccl) ( 101),4953994,103267.53,Optional requirement only,Stock
Department of Health,Imperial College Healthcare NHS Trust,02/06/2024,Supplies Issues Recharges,Ichnt Balance Sheet,Supply Chain Coordination Ltd (Sccl) ( 101),4953995,95331.76,Optional requirement only,Stock
Department of Health,Imperial College Healthcare NHS Trust,02/06/2024,Supplies Issues Recharges,Ichnt Balance Sheet,Supply Chain Coordination Ltd (Sccl) ( 101),4953996,100168.97,Optional requirement only,Stock
Department of Health,Imperial College Healthcare NHS Trust,02/06/2024,Supplies Issues Recharges,Ichnt Balance Sheet,Supply Chain Coordination Ltd (Sccl) ( 101),4953997,54010.17,Optional requirement only,Stock
Department of Health,Imperial College Healthcare NHS Trust,02/06/2024,Supplies Issues Recharges,Ichnt Balance Sheet,Supply Chain Coordination Ltd (Sccl) ( 101),4958070,168590.48,Optional requirement only,Stock
Department of Health,Imperial College Healthcare NHS Trust,02/06/2024,Supplies Issues Recharges,Ichnt Balance Sheet,Supply Chain Coordination Ltd (Sccl) ( 101),4958071,100799.09,Optional requirement only,Stock
Department of Health,Imperial College Healthcare NHS Trust,02/06/2024,Supplies Issues Recharges,Ichnt Balance Sheet,Supply Chain Coordination Ltd (Sccl) ( 101),4958072,47813.12,Optional requirement only,Stock
Department of Health,Imperial College Healthcare NHS Trust,02/06/2024,Supplies Issues Recharges,Ichnt Balance Sheet,Supply Chain Coordination Ltd (Sccl) ( 101),4958390,110740.65,Optional requirement only,Stock
Department of Health,Imperial College Healthcare NHS Trust,02/06/2024,Supplies Issues Recharges,Ichnt Balance Sheet,Supply Chain Coordination Ltd (Sccl) ( 101),4958391,108994.99,Optional requirement only,Stock
Department of Health,Imperial College Healthcare NHS Trust,02/06/2024,Supplies Issues Recharges,Ichnt Balance Sheet,Supply Chain Coordination Ltd (Sccl) ( 101),4958392,121314.08,Optional requirement only,Stock
Department of Health,Imperial College Healthcare NHS Trust,02/06/2024,Supplies Issues Recharges,Ichnt Balance Sheet,Supply Chain Coordination Ltd (Sccl) ( 101),4962541,53222.58,Optional requirement only,Stock
Department of Health,Imperial College Healthcare NHS Trust,02/06/2024,Supplies Issues Recharges,Ichnt Balance Sheet,Supply Chain Coordination Ltd (Sccl) ( 101),4962542,146806.52,Optional requirement only,Stock
Department of Health,Imperial College Healthcare NHS Trust,02/06/2024,Supplies Issues Recharges,Ichnt Balance Sheet,Supply Chain Coordination Ltd (Sccl) ( 101),4962543,112896.91,Optional requirement only,Stock
Department of Health,Imperial College Healthcare NHS Trust,02/06/2024,Supplies Issues Recharges,Ichnt Balance Sheet,Supply Chain Coordination Ltd (Sccl) ( 101),4962544,78325.78,Optional requirement only,Stock
Department of Health,Imperial College Healthcare NHS Trust,02/06/2024,Supplies Issues Recharges,Ichnt Balance Sheet,Supply Chain Coordination Ltd (Sccl) ( 101),4962545,82428.03,Optional requirement only,Stock
Department of Health,Imperial College Healthcare NHS Trust,02/06/2024,Supplies Issues Recharges,Ichnt Balance Sheet,Supply Chain Coordination Ltd (Sccl) ( 101),4962546,141072.35,Optional requirement only,Stock
Department of Health,Imperial College Healthcare NHS Trust,02/08/2024,Agency Consultant,Pathology,Reed Specialist Recruitment Ltd,61956,32008.27,Optional requirement only,0
Department of Health,Imperial College Healthcare NHS Trust,02/08/2024,Agency Nursing: Qualified,Div Of Med & Integrated Care,Reed Specialist Recruitment Ltd,4968478,44890.4,Optional requirement only,0
Department of Health,Imperial College Healthcare NHS Trust,02/08/2024,Computer Software/License,Information & Comms Technology,Oracle Corporation Uk Ltd,4958090,62784.86,Optional requirement only,0
Department of Health,Imperial College Healthcare NHS Trust,02/08/2024,Computer Software/License,Information & Comms Technology,Oracle Corporation Uk Ltd,4958096,47088.66,Optional requirement only,0
Department of Health,Imperial College Healthcare NHS Trust,02/08/2024,Computer Software/License,Medical Director Summary,Datix Ltd,4954338,31340.02,Optional requirement only,0
Department of Health,Imperial College Healthcare NHS Trust,02/08/2024,Cy Auc -Addns-Bd Purchased,Capital Summary,Cuffe  Plc,4964031,426295.1,Optional requirement only,0
Department of Health,Imperial College Healthcare NHS Trust,02/08/2024,Cy Auc -Addns-Bd Purchased,Capital Summary,Quinn London Limited,4962615,723102,Optional requirement only,0
Department of Health,Imperial College Healthcare NHS Trust,02/08/2024,Cy Auc -Addns- P & M-Purchased,Capital Summary,Avoira Ltd,4952220,44052,Optional requirement only,0
Department of Health,Imperial College Healthcare NHS Trust,02/08/2024,Cy Auc -Addns- P & M-Purchased,Capital Summary,Supply Chain Coordination Ltd (Sccl) ( 905),4946314,396028.7,Optional requirement only,0
Department of Health,Imperial College Healthcare NHS Trust,02/08/2024,Jac - Stock,Balance Sheet St Marys,Bms Pharmaceuticals Ltd (0034),4970384,33169.44,Optional requirement only,Stock
Department of Health,Imperial College Healthcare NHS Trust,02/08/2024,Jac - Stock,Balance Sheet St Marys,Qualasept Ltd,4970349,34564.68,Optional requirement only,Stock
Department of Health,Imperial College Healthcare NHS Trust,02/08/2024,Med & Surg Equip Leases,Div Of Med & Integrated Care,De Lage Landen Leasing Limited,4951106,34236.3,Optional requirement only,0
Department of Health,Imperial College Healthcare NHS Trust,02/08/2024,Med & Surg Equip Purchases,Div Of Med & Integrated Care,De Lage Landen Leasing Limited,4897758,34236.3,Optional requirement only,0
Department of Health,Imperial College Healthcare NHS Trust,02/08/2024,Med & Surg Maint Contract,Div Of Med & Integrated Care,Supply Chain Coordination Ltd (Sccl) ( 201),4849555,93264.47,Optional requirement only,0
Department of Health,Imperial College Healthcare NHS Trust,02/08/2024,Nhs Pay Recharge In: Med,"Div Of Surg, Cardiov & Cancer",London North West Univ Healthcare Nhs Trust,4941379,38185.32,Optional requirement only,0
Department of Health,Imperial College Healthcare NHS Trust,02/08/2024,Other Research Exp - Non-Pay,Rd Surgery & Cancer Division,Novai Ltd,4954565,47160,Optional requirement only,0
Department of Health,Imperial College Healthcare NHS Trust,02/08/2024,Postage & Carriage,Estates Directorate,Whistl Uk Limited,4969800,38264.95,Optional requirement only,0
Department of Health,Imperial College Healthcare NHS Trust,02/08/2024,Recharge Out - Pay - Ic,Div Of Women Cardiac Clin Sup & Sexual Health Serv,Imperial College London,4957447,25843.44,Optional requirement only,0
Department of Health,Imperial College Healthcare NHS Trust,02/09/2024,Computer Software/License,Div Of Women Cardiac Clin Sup & Sexual Health Serv,Sorg-Saem Bv,4913023,48971.86,Optional requirement only,0
Department of Health,Imperial College Healthcare NHS Trust,2/13/2024,Car Salary Sacrifice,Ichnt Balance Sheet,Tuskerdirect Ltd,4966251,116661.03,Optional requirement only,0
Department of Health,Imperial College Healthcare NHS Trust,2/13/2024,Computer Software/License,Information & Comms Technology,Cdw Ltd,4966688,94659.26,Optional requirement only,0
Department of Health,Imperial College Healthcare NHS Trust,2/13/2024,Conferences And Seminars,Nursing Directorate,Buckinghamshire New University,4964797,99000,Optional requirement only,0
Department of Health,Imperial College Healthcare NHS Trust,2/13/2024,Course Fees,Nursing Directorate,Buckinghamshire New University,4773410,29130,Optional requirement only,0
Department of Health,Imperial College Healthcare NHS Trust,2/13/2024,Course Fees,Nursing Directorate,Royal Marsden Nhs Foundation Trust,4965959,49500,Optional requirement only,0
Department of Health,Imperial College Healthcare NHS Trust,2/13/2024,Cy Auc -Addns- Prof Fee)-Purch,Capital Summary,Eta Projects Ltd,4965363,36000,Optional requirement only,0
Department of Health,Imperial College Healthcare NHS Trust,2/13/2024,Cy Auc -Addns- Prof Fee)-Purch,Capital Summary,Eta Projects Ltd,4965365,48000,Optional requirement only,0
Department of Health,Imperial College Healthcare NHS Trust,2/13/2024,Decontamination Services,Estates Directorate,Ihss Limited,4969606,455504.15,Optional requirement only,0
Department of Health,Imperial College Healthcare NHS Trust,2/13/2024,Doctor In Training - Locum,Central Costs,Chelsea And  Westminster Hospital Nhs Ft,4846554,153279.14,Optional requirement only,0
Department of Health,Imperial College Healthcare NHS Trust,2/13/2024,Doctor In Training - Locum,Central Costs,Chelsea And  Westminster Hospital Nhs Ft,4946007,158036.78,Optional requirement only,0
Department of Health,Imperial College Healthcare NHS Trust,2/13/2024,Doctor In Training - Locum,Central Costs,London North West Univ Healthcare Nhs Trust,4885369,288552,Optional requirement only,0
Department of Health,Imperial College Healthcare NHS Trust,2/13/2024,Doctor In Training - Locum,Central Costs,The Hillingdon Hospital Nhs Foundation Trust,4755879,107950.81,Optional requirement only,0
Department of Health,Imperial College Healthcare NHS Trust,2/13/2024,Drugs Nhs,Div Of Women Cardiac Clin Sup & Sexual Health Serv,Lp Hcs Ltd,4967693,3250746.24,Optional requirement only,0
Department of Health,Imperial College Healthcare NHS Trust,2/13/2024,Drugs Nhs,Div Of Women Cardiac Clin Sup & Sexual Health Serv,Lp Hcs Ltd,4968107,3757623.1,Optional requirement only,0
Department of Health,Imperial College Healthcare NHS Trust,2/13/2024,Drugs Pbr Excluded,"Div Of Surg, Cardiov & Cancer",Healthcare At Home Ltd,4968050,52014.39,Optional requirement only,0
Department of Health,Imperial College Healthcare NHS Trust,2/13/2024,Drugs Pbr Excluded,"Div Of Surg, Cardiov & Cancer",Healthcare At Home Ltd,4968051,26399.7,Optional requirement only,0
Department of Health,Imperial College Healthcare NHS Trust,2/13/2024,Ext Contr Laundry,Estates Directorate,Synergy Health Managed Services Ltd,4972068,92234.68,Optional requirement only,0
Department of Health,Imperial College Healthcare NHS Trust,2/13/2024,Ext Contr Laundry,Estates Directorate,Synergy Health Managed Services Ltd,4972069,60607.36,Optional requirement only,0
Department of Health,Imperial College Healthcare NHS Trust,2/13/2024,Ext Contr Laundry,Estates Directorate,Synergy Health Managed Services Ltd,4972070,93991.15,Optional requirement only,0
Department of Health,Imperial College Healthcare NHS Trust,2/13/2024,Ext Contr Laundry,Estates Directorate,Synergy Health Managed Services Ltd,4972072,115923.35,Optional requirement only,0
Department of Health,Imperial College Healthcare NHS Trust,2/13/2024,Internal Recharge: Estates,Pathology,Chelsea And  Westminster Hospital Nhs Ft,60498,932500,Optional requirement only,0
Department of Health,Imperial College Healthcare NHS Trust,2/13/2024,Internal Recharge: Estates,Pathology,Chelsea And  Westminster Hospital Nhs Ft,60499,932500,Optional requirement only,0
Department of Health,Imperial College Healthcare NHS Trust,2/13/2024,Isotopes,Div Of Women Cardiac Clin Sup & Sexual Health Serv,Curium Pharma Uk Ltd,4965914,85140,Optional requirement only,0
Department of Health,Imperial College Healthcare NHS Trust,2/13/2024,Jac - Stock,Balance Sheet St Marys,Alloga Uk Ltd,4969176,61020,Optional requirement only,Stock
Department of Health,Imperial College Healthcare NHS Trust,2/13/2024,Jac - Stock,Balance Sheet St Marys,Alloga Uk Ltd,4969185,81360,Optional requirement only,Stock
Department of Health,Imperial College Healthcare NHS Trust,2/13/2024,Jac - Stock,Balance Sheet St Marys,Csl Behring Uk Ltd,4969231,121933.5,Optional requirement only,Stock
Department of Health,Imperial College Healthcare NHS Trust,2/13/2024,Jac - Stock,Balance Sheet St Marys,Csl Behring Uk Ltd,4969232,143024.7,Optional requirement only,Stock
Department of Health,Imperial College Healthcare NHS Trust,2/13/2024,Jac - Stock,Balance Sheet St Marys,Csl Behring Uk Ltd,4969233,38227.75,Optional requirement only,Stock
Department of Health,Imperial College Healthcare NHS Trust,2/13/2024,Med & Prof Fees (Imaging Cons),Ichnt Balance Sheet,Lindo Wing Radiology Llp,4970049,142661.58,Optional requirement only,0
Department of Health,Imperial College Healthcare NHS Trust,2/13/2024,Med & Surg Equip Hire,Div Of Women Cardiac Clin Sup & Sexual Health Serv,Ukri-Mrc,4967692,31200,Optional requirement only,0
Department of Health,Imperial College Healthcare NHS Trust,2/13/2024,Med & Surg Equip Repair,"Div Of Surg, Cardiov & Cancer",Karl Storz Endoscopy (Uk) Ltd,4892198,145874.4,Optional requirement only,0
Department of Health,Imperial College Healthcare NHS Trust,2/13/2024,Other Research Exp - Non-Pay,Rd Medical Directorate,Imperial College London,4962596,4671782.12,Optional requirement only,0
Department of Health,Imperial College Healthcare NHS Trust,2/13/2024,Other Research Exp - Non-Pay,Rd Medical Directorate,Imperial College London,4962606,1250212.06,Optional requirement only,0
Department of Health,Imperial College Healthcare NHS Trust,2/13/2024,Other Research Exp - Pay,Rd Medicine Division,Imperial College London,4958255,100553.11,Optional requirement only,0
Department of Health,Imperial College Healthcare NHS Trust,2/13/2024,Professional Services,Estates Directorate,Knight Security Limited,4971650,33258.3,Optional requirement only,0
Department of Health,Imperial College Healthcare NHS Trust,2/13/2024,Season Ticket Cr Abellio,Ichnt Balance Sheet,Abellio Transport Holdings Ltd,4951031,36397.9,Optional requirement only,0
Department of Health,Imperial College Healthcare NHS Trust,2/13/2024,Season Ticket Cr Abellio,Ichnt Balance Sheet,Abellio Transport Holdings Ltd,4959399,44739.8,Optional requirement only,0
Department of Health,Imperial College Healthcare NHS Trust,2/13/2024,Sewerage,Estates Directorate,Castle Water Ltd,4972063,40809.7,Optional requirement only,0
Department of Health,Imperial College Healthcare NHS Trust,2/13/2024,Water,Estates Directorate,Castle Water Ltd,4972063,78375.76,Optional requirement only,0
Department of Health,Imperial College Healthcare NHS Trust,2/15/2024,Acton Housing Association,Ichnt Balance Sheet,A2dominion Housing Group Ltd,4975090,408265.4,Optional requirement only,Housing Deductions
Department of Health,Imperial College Healthcare NHS Trust,2/15/2024,Agency Nursing: Qualified,Div Of Med & Integrated Care,Reed Specialist Recruitment Ltd,4975057,91067.4,Optional requirement only,0
Department of Health,Imperial College Healthcare NHS Trust,2/15/2024,Agency Nursing: Qualified,"Div Of Surg, Cardiov & Cancer",Reed Specialist Recruitment Ltd,4975057,43088.25,Optional requirement only,0
Department of Health,Imperial College Healthcare NHS Trust,2/15/2024,Cy Auc -Addns-Bd Purchased,Capital Summary,Cuffe  Plc,4975043,150284.75,Optional requirement only,0
Department of Health,Imperial College Healthcare NHS Trust,2/15/2024,Ext Contract - Patient Travel,Estates Directorate,Falck Uk Ambulance Service Limited,4966270,2087041.12,Optional requirement only,0
Department of Health,Imperial College Healthcare NHS Trust,2/15/2024,Jac - Stock,Balance Sheet St Marys,Alliance Healthcare (Distribution) Ltd,4973255,142026.24,Optional requirement only,Stock
Department of Health,Imperial College Healthcare NHS Trust,2/15/2024,Jac - Stock,Balance Sheet St Marys,Alloga Uk Ltd,4975283,61020,Optional requirement only,Stock
Department of Health,Imperial College Healthcare NHS Trust,2/15/2024,Jac - Stock,Balance Sheet St Marys,Grifols Uk Ltd,4973055,25726,Optional requirement only,Stock
Department of Health,Imperial College Healthcare NHS Trust,2/15/2024,Jac - Stock,Balance Sheet St Marys,Lloyds Pharmacy Clinical Homecare,4974880,34413.92,Optional requirement only,Stock
Department of Health,Imperial College Healthcare NHS Trust,2/15/2024,Jac - Stock,Balance Sheet St Marys,Qualasept Ltd,4974254,49430.44,Optional requirement only,Stock
Department of Health,Imperial College Healthcare NHS Trust,2/15/2024,Jac - Stock,Balance Sheet St Marys,Qualasept Ltd,4974258,53015.45,Optional requirement only,Stock
Department of Health,Imperial College Healthcare NHS Trust,2/15/2024,Lease Rents,Estates Directorate,London Borough Of Hammersmith/Fulham,4932869,129661.36,Optional requirement only,0
Department of Health,Imperial College Healthcare NHS Trust,2/15/2024,Lease Rents,Estates Directorate,London Borough Of Hammersmith/Fulham,4972774,137524.04,Optional requirement only,0
Department of Health,Imperial College Healthcare NHS Trust,2/15/2024,Other Research Exp - Pay,Rd Medical Directorate,London Borough Of Hammersmith & Fulham,4966727,64000,Optional requirement only,0
Department of Health,Imperial College Healthcare NHS Trust,2/15/2024,Professional Services,Information & Comms Technology,Hunter Healthcare Resourcing Ltd,4966618,160080,Optional requirement only,0
Department of Health,Imperial College Healthcare NHS Trust,2/15/2024,Thames Valley Housing Assoc,Ichnt Balance Sheet,Metropolitan Thames Valley,4975091,121415.2,Optional requirement only,Housing Deductions
Department of Health,Imperial College Healthcare NHS Trust,2/20/2024,Agency Consultant,Pathology,Reed Specialist Recruitment Ltd,62238,86456.86,Optional requirement only,0
Department of Health,Imperial College Healthcare NHS Trust,2/20/2024,Bldg/Eng Equip Maint/Rep,Estates Directorate,Cbre Managed Services Ltd,4972104,130686.34,Optional requirement only,0
Department of Health,Imperial College Healthcare NHS Trust,2/20/2024,Bldg/Eng Equip Maint/Rep,Estates Directorate,Cbre Managed Services Ltd,4976724,599583.36,Optional requirement only,0
Department of Health,Imperial College Healthcare NHS Trust,2/20/2024,Computer Maintenance,Information & Comms Technology,Infratech Hardware Limited,4972195,73458.26,Optional requirement only,0
Department of Health,Imperial College Healthcare NHS Trust,2/20/2024,Computer Software/License,Human Resources,Softcat Plc,4941358,52674,Optional requirement only,0
Department of Health,Imperial College Healthcare NHS Trust,2/20/2024,Contr Other External,Div Of Women Cardiac Clin Sup & Sexual Health Serv,Ukri-Mrc,4919987,46980,Optional requirement only,0
Department of Health,Imperial College Healthcare NHS Trust,2/20/2024,Contr Other External,Estates Directorate,Cbre Managed Services Ltd,4971686,827301.18,Optional requirement only,0
Department of Health,Imperial College Healthcare NHS Trust,2/20/2024,Cy Auc -Addns-Bd Purchased,Capital Summary,Breathe Energy Ltd,4934706,494577.61,Optional requirement only,0
Department of Health,Imperial College Healthcare NHS Trust,2/20/2024,Cy Auc -Addns-Bd Purchased,Capital Summary,Cbre Managed Services Ltd,4976724,559687.55,Optional requirement only,0
Department of Health,Imperial College Healthcare NHS Trust,2/20/2024,Electricity,Estates Directorate,Edf Energy Customer Plc,4972085,326295.46,Optional requirement only,0
Department of Health,Imperial College Healthcare NHS Trust,2/20/2024,Electricity,Estates Directorate,Edf Energy Customer Plc,4972087,143896.03,Optional requirement only,0
Department of Health,Imperial College Healthcare NHS Trust,2/20/2024,Electricity,Estates Directorate,Edf Energy Customer Plc,4972089,39912.58,Optional requirement only,0
Department of Health,Imperial College Healthcare NHS Trust,2/20/2024,Electricity,Estates Directorate,Edf Energy Customer Plc,4972091,628488.7,Optional requirement only,0
Department of Health,Imperial College Healthcare NHS Trust,2/20/2024,Electricity,Estates Directorate,Edf Energy Customer Plc,4972093,46854.18,Optional requirement only,0
Department of Health,Imperial College Healthcare NHS Trust,2/20/2024,Electricity,Estates Directorate,Edf Energy Customer Plc,4972094,61964.86,Optional requirement only,0
Department of Health,Imperial College Healthcare NHS Trust,2/20/2024,Equip Maint Contracts,Estates Directorate,Cbre Managed Services Ltd,4971688,38990.1,Optional requirement only,0
Department of Health,Imperial College Healthcare NHS Trust,2/20/2024,Equip Maint Contracts,Estates Directorate,Cbre Managed Services Ltd,4976622,77980.2,Optional requirement only,0
Department of Health,Imperial College Healthcare NHS Trust,2/20/2024,Equip Maint Contracts,Estates Directorate,Cbre Managed Services Ltd,4976624,77980.2,Optional requirement only,0
Department of Health,Imperial College Healthcare NHS Trust,2/20/2024,Ext Contr Logistics,Div Of Women Cardiac Clin Sup & Sexual Health Serv,Eleanor Hospital Logistics Ltd,4952017,55741,Optional requirement only,0
Department of Health,Imperial College Healthcare NHS Trust,2/20/2024,Ext Contr Logistics,Div Of Women Cardiac Clin Sup & Sexual Health Serv,Eleanor Hospital Logistics Ltd,4952020,58588.33,Optional requirement only,0
Department of Health,Imperial College Healthcare NHS Trust,2/20/2024,Ext Contr Logistics,Div Of Women Cardiac Clin Sup & Sexual Health Serv,Eleanor Hospital Logistics Ltd,4954534,58322.82,Optional requirement only,0
Department of Health,Imperial College Healthcare NHS Trust,2/20/2024,Gas,Estates Directorate,Total Gas & Power Ltd,4976560,160789.73,Optional requirement only,0
Department of Health,Imperial College Healthcare NHS Trust,2/20/2024,Gas,Estates Directorate,Total Gas & Power Ltd,4976561,295134.11,Optional requirement only,0
Department of Health,Imperial College Healthcare NHS Trust,2/20/2024,Gas,Estates Directorate,Total Gas & Power Ltd,4976564,355378.64,Optional requirement only,0
Department of Health,Imperial College Healthcare NHS Trust,2/20/2024,Income Tax Paye,Ichnt Balance Sheet,Hmrc Government Employers Account,4975467,12162997.71,Optional requirement only,0
Department of Health,Imperial College Healthcare NHS Trust,2/20/2024,Income Tax Paye,Ichnt Balance Sheet,Hmrc Government Employers Account,4975468,11039097.28,Optional requirement only,0
Department of Health,Imperial College Healthcare NHS Trust,2/20/2024,Interpreting Services,Div Of Women Cardiac Clin Sup & Sexual Health Serv,Oncall Interpreters Ltd [Cw],4937678,76751.14,Optional requirement only,0
Department of Health,Imperial College Healthcare NHS Trust,2/20/2024,Interpreting Services,Div Of Women Cardiac Clin Sup & Sexual Health Serv,Oncall Interpreters Ltd [Cw],4949549,60785.63,Optional requirement only,0
Department of Health,Imperial College Healthcare NHS Trust,2/20/2024,Jac - Stock,Balance Sheet St Marys,Alliance Healthcare (Distribution) Ltd,4976193,33767.08,Optional requirement only,Stock
Department of Health,Imperial College Healthcare NHS Trust,2/20/2024,Jac - Stock,Balance Sheet St Marys,Alloga Uk Ltd,4976757,61020,Optional requirement only,Stock
Department of Health,Imperial College Healthcare NHS Trust,2/20/2024,Jac - Stock,Balance Sheet St Marys,Janssen-Cilag Ltd,4976060,55209.6,Optional requirement only,Stock
Department of Health,Imperial College Healthcare NHS Trust,2/20/2024,Jac - Stock,Balance Sheet St Marys,Roche Products Ltd,4976842,354698.12,Optional requirement only,Stock
Department of Health,Imperial College Healthcare NHS Trust,2/20/2024,Jac - Stock,Balance Sheet St Marys,Roche Products Ltd,4976844,47400,Optional requirement only,Stock
Department of Health,Imperial College Healthcare NHS Trust,2/20/2024,Med & Surg Equip Leases,"Div Of Surg, Cardiov & Cancer",Intuitive Surgical Ltd,4967657,34248,Optional requirement only,0
Department of Health,Imperial College Healthcare NHS Trust,2/20/2024,Med & Surg Equip Leases,Estates Directorate,Arjo Uk Ltd,4965844,115657.7,Optional requirement only,0
Department of Health,Imperial College Healthcare NHS Trust,2/20/2024,Med & Surg Maint Contract,Estates Directorate,Ge Medical Systems Limited,4970626,767342.4,Optional requirement only,0
Department of Health,Imperial College Healthcare NHS Trust,2/20/2024,Organ Donor Expenses,"Div Of Surg, Cardiov & Cancer",The Anthony Nolan Trust,4941615,25000,Optional requirement only,0
Department of Health,Imperial College Healthcare NHS Trust,2/20/2024,Taxi & Other Vehicle Hire,Estates Directorate,Hats Group Ltd,4960346,32934.94,Optional requirement only,0
Department of Health,Imperial College Healthcare NHS Trust,2/22/2024,Computer Software/License,Information & Comms Technology,Oracle Corporation Uk Ltd,4969829,168985.67,Optional requirement only,0
Department of Health,Imperial College Healthcare NHS Trust,2/22/2024,Computer Software/License,Information & Comms Technology,Oracle Corporation Uk Ltd,4969830,47088.66,Optional requirement only,0
Department of Health,Imperial College Healthcare NHS Trust,2/22/2024,Computer Software/License,Information & Comms Technology,Oracle Corporation Uk Ltd,4969838,62784.86,Optional requirement only,0
Department of Health,Imperial College Healthcare NHS Trust,2/22/2024,Course Fees,Nursing Directorate,City University,4970551,49500,Optional requirement only,0
Department of Health,Imperial College Healthcare NHS Trust,2/22/2024,Cy Auc -Addns-Bd Purchased,Capital Summary,Cbre Managed Services Ltd,4978605,72911.63,Optional requirement only,0
Department of Health,Imperial College Healthcare NHS Trust,2/22/2024,Cy Auc -Addns- P & M-Purchased,Capital Summary,Karl Storz Endoscopy (Uk) Ltd,4970808,137092.92,Optional requirement only,0
Department of Health,Imperial College Healthcare NHS Trust,2/22/2024,Dialysers,Div Of Med & Integrated Care,Fresenius Medical Care Uk Ltd,4951284,70009.82,Optional requirement only,0
Department of Health,Imperial College Healthcare NHS Trust,2/22/2024,Dialysers,Div Of Med & Integrated Care,Fresenius Medical Care Uk Ltd,4951285,66492.85,Optional requirement only,0
Department of Health,Imperial College Healthcare NHS Trust,2/22/2024,Dialysers,Div Of Med & Integrated Care,Fresenius Medical Care Uk Ltd,4951286,73231.47,Optional requirement only,0
Department of Health,Imperial College Healthcare NHS Trust,2/22/2024,Doctor In Training - Locum,Central Costs,London North West Univ Healthcare Nhs Trust,4965335,361394.69,Optional requirement only,0
Department of Health,Imperial College Healthcare NHS Trust,2/22/2024,Ext Contr Logistics,Finance Directorate,Eleanor Hospital Logistics Ltd,4915612,47556.67,Optional requirement only,0
Department of Health,Imperial College Healthcare NHS Trust,2/22/2024,Ext Contr Logistics,Finance Directorate,Eleanor Hospital Logistics Ltd,4928802,56091.66,Optional requirement only,0
Department of Health,Imperial College Healthcare NHS Trust,2/22/2024,Ext Contr Logistics,Finance Directorate,Eleanor Hospital Logistics Ltd,4930946,42735.5,Optional requirement only,0
Department of Health,Imperial College Healthcare NHS Trust,2/22/2024,Ic Pay Recharge In: Med,Central Costs,Imperial College London,4737371,244689.09,Optional requirement only,0
Department of Health,Imperial College Healthcare NHS Trust,2/22/2024,Internal Recharge: Estates,Pathology,Chelsea And  Westminster Hospital Nhs Ft,62095,274000,Optional requirement only,0
Department of Health,Imperial College Healthcare NHS Trust,2/22/2024,Items Pending Investigation,Ichnt Balance Sheet,Integra Neurosciences Ltd,4974705,57294.85,Optional requirement only,0
Department of Health,Imperial College Healthcare NHS Trust,2/22/2024,Jac - Stock,Balance Sheet St Marys,Alliance Healthcare (Distribution) Ltd,4978968,44743.28,Optional requirement only,Stock
Department of Health,Imperial College Healthcare NHS Trust,2/22/2024,Laboratory Equipment,Information & Comms Technology,Woodward Associates (Uk) Ltd,4955235,45986.4,Optional requirement only,0
Department of Health,Imperial College Healthcare NHS Trust,2/22/2024,Laboratory External Tests,Pathology,University College London Hospitals Nhs Ft,4949118,47746.95,Optional requirement only,0
Department of Health,Imperial College Healthcare NHS Trust,2/22/2024,Laboratory External Tests,Pathology,University College London Hospitals Nhs Ft,60045,40026.79,Optional requirement only,0
Department of Health,Imperial College Healthcare NHS Trust,2/22/2024,Med & Surg Equip General,Div Of Women Cardiac Clin Sup & Sexual Health Serv,Human Fertlisation & Embryology Authority,4954098,33350,Optional requirement only,0
Department of Health,Imperial College Healthcare NHS Trust,2/22/2024,Med & Surg Equip Leases,"Div Of Surg, Cardiov & Cancer",Intuitive Surgical Ltd,4946306,34248,Optional requirement only,0
Department of Health,Imperial College Healthcare NHS Trust,2/22/2024,Med & Surg Equip Repair,"Div Of Surg, Cardiov & Cancer",Ge Medical Systems Limited,4979334,72681.42,Optional requirement only,0
Department of Health,Imperial College Healthcare NHS Trust,2/22/2024,Med & Surg Equip Repair,Div Of Women Cardiac Clin Sup & Sexual Health Serv,Ge Medical Systems Limited,4979334,37941.48,Optional requirement only,0
Department of Health,Imperial College Healthcare NHS Trust,2/22/2024,Non-Nhs Pay Recharge In: Other,"Div Of Surg, Cardiov & Cancer",Imperial College London,4962312,64165.04,Optional requirement only,0
Department of Health,Imperial College Healthcare NHS Trust,2/22/2024,Phone Rental And Calls,Information & Comms Technology,Exponential -E Ltd,4950319,78814.8,Optional requirement only,0
Department of Health,Imperial College Healthcare NHS Trust,2/22/2024,Programme Support Costs,"Div Of Surg, Cardiov & Cancer",Mbi Healthcare Technologies Limited,4883470,89562.1,Optional requirement only,0
Department of Health,Imperial College Healthcare NHS Trust,2/22/2024,Rates,Estates Directorate,London Borough Hammersmith & Fulham,4979946,185313,Optional requirement only,0
Department of Health,Imperial College Healthcare NHS Trust,2/22/2024,Rates,Estates Directorate,London Borough Hammersmith & Fulham,4979947,165363,Optional requirement only,0
Department of Health,Imperial College Healthcare NHS Trust,2/22/2024,Services Received - Nhsts,Pathology,University College London Hospitals Nhs Ft,4880051,25047,Optional requirement only,0
,,,,,,Sum:,76632347.41,,0
,,,,,Count:,247,,,0
